{"text_format":"3","workbook":"xlsx","n_sheets":3,"sheets":["Plán","Zadávanie údajov","Vyhľadanie mena"],"not_rendered":{"defined_names":5},"read":"whole","date_system":"1900"}

{"sheet":"Plán","index":0,"n_rows":23,"n_cols":9,"rows_kept":23,"merged":[[1,1,2,3]]}
[]
[null,"DENNÝ PLÁN",{"$nulls":4},"Na týždeň od ","Zobrazenie plánu pre: "]
[{"$nulls":5},{"$f":"WEEKDAY(TýždeňOd,1)","v":3},"2012-07-03","Peter"]
[null,null,{"$f":"$F$3=COLUMN(A$1)","v":false},{"$f":"$F$3=COLUMN(B$1)","v":false},true,false,false,false,false]
[null,null,{"$f":"COLUMN(A$1)-MATCH(TRUE,$C$4:$I$4,0)+TýždeňOd+1","v":"2012-07-02"},"2012-07-03","2012-07-04","2012-07-05","2012-07-06","2012-07-07","2012-07-08"]
[null,"ČAS","PONDELOK","UTOROK","STREDA","ŠTVRTOK","PIATOK","SOBOTA","NEDEĽA"]
[null,"06:00:00",{"$f":"IFERROR(INDEX(tblÚdaje[],MATCH(C$5+$B7&ZobrazenéMeno,tblÚdaje[DÁTUM A ČAS]&tblÚdaje[KTO],0),3),\"\")","v":""},{"$f":"IFERROR(INDEX(tblÚdaje[],MATCH(D$5+$B7&ZobrazenéMeno,tblÚdaje[DÁTUM A ČAS]&tblÚdaje[KTO],0),3),\"\")","v":""},{"$f":"IFERROR(INDEX(tblÚdaje[],MATCH(E$5+$B7&ZobrazenéMeno,tblÚdaje[DÁTUM A ČAS]&tblÚdaje[KTO],0),3),\"\")","v":""},{"$f":"IFERROR(INDEX(tblÚdaje[],MATCH(F$5+$B7&ZobrazenéMeno,tblÚdaje[DÁTUM A ČAS]&tblÚdaje[KTO],0),3),\"\")","v":""},{"$f":"IFERROR(INDEX(tblÚdaje[],MATCH(G$5+$B7&ZobrazenéMeno,tblÚdaje[DÁTUM A ČAS]&tblÚdaje[KTO],0),3),\"\")","v":""},{"$f":"IFERROR(INDEX(tblÚdaje[],MATCH(H$5+$B7&ZobrazenéMeno,tblÚdaje[DÁTUM A ČAS]&tblÚdaje[KTO],0),3),\"\")","v":""},{"$f":"IFERROR(INDEX(tblÚdaje[],MATCH(I$5+$B7&ZobrazenéMeno,tblÚdaje[DÁTUM A ČAS]&tblÚdaje[KTO],0),3),\"\")","v":""}]
[null,"07:00:00",{"$f":"IFERROR(INDEX(tblÚdaje[],MATCH(C$5+$B8&ZobrazenéMeno,tblÚdaje[DÁTUM A ČAS]&tblÚdaje[KTO],0),3),\"\")","v":""},{"$f":"IFERROR(INDEX(tblÚdaje[],MATCH(D$5+$B8&ZobrazenéMeno,tblÚdaje[DÁTUM A ČAS]&tblÚdaje[KTO],0),3),\"\")","v":""},{"$f":"IFERROR(INDEX(tblÚdaje[],MATCH(E$5+$B8&ZobrazenéMeno,tblÚdaje[DÁTUM A ČAS]&tblÚdaje[KTO],0),3),\"\")","v":""},{"$f":"IFERROR(INDEX(tblÚdaje[],MATCH(F$5+$B8&ZobrazenéMeno,tblÚdaje[DÁTUM A ČAS]&tblÚdaje[KTO],0),3),\"\")","v":""},{"$f":"IFERROR(INDEX(tblÚdaje[],MATCH(G$5+$B8&ZobrazenéMeno,tblÚdaje[DÁTUM A ČAS]&tblÚdaje[KTO],0),3),\"\")","v":""},{"$f":"IFERROR(INDEX(tblÚdaje[],MATCH(H$5+$B8&ZobrazenéMeno,tblÚdaje[DÁTUM A ČAS]&tblÚdaje[KTO],0),3),\"\")","v":""},{"$f":"IFERROR(INDEX(tblÚdaje[],MATCH(I$5+$B8&ZobrazenéMeno,tblÚdaje[DÁTUM A ČAS]&tblÚdaje[KTO],0),3),\"\")","v":""}]
[null,"08:00:00",{"$f":"IFERROR(INDEX(tblÚdaje[],MATCH(C$5+$B9&ZobrazenéMeno,tblÚdaje[DÁTUM A ČAS]&tblÚdaje[KTO],0),3),\"\")","v":""},{"$f":"IFERROR(INDEX(tblÚdaje[],MATCH(D$5+$B9&ZobrazenéMeno,tblÚdaje[DÁTUM A ČAS]&tblÚdaje[KTO],0),3),\"\")","v":""},{"$f":"IFERROR(INDEX(tblÚdaje[],MATCH(E$5+$B9&ZobrazenéMeno,tblÚdaje[DÁTUM A ČAS]&tblÚdaje[KTO],0),3),\"\")","v":""},{"$f":"IFERROR(INDEX(tblÚdaje[],MATCH(F$5+$B9&ZobrazenéMeno,tblÚdaje[DÁTUM A ČAS]&tblÚdaje[KTO],0),3),\"\")","v":""},{"$f":"IFERROR(INDEX(tblÚdaje[],MATCH(G$5+$B9&ZobrazenéMeno,tblÚdaje[DÁTUM A ČAS]&tblÚdaje[KTO],0),3),\"\")","v":""},{"$f":"IFERROR(INDEX(tblÚdaje[],MATCH(H$5+$B9&ZobrazenéMeno,tblÚdaje[DÁTUM A ČAS]&tblÚdaje[KTO],0),3),\"\")","v":""},{"$f":"IFERROR(INDEX(tblÚdaje[],MATCH(I$5+$B9&ZobrazenéMeno,tblÚdaje[DÁTUM A ČAS]&tblÚdaje[KTO],0),3),\"\")","v":""}]
[null,"09:00:00",{"$f":"IFERROR(INDEX(tblÚdaje[],MATCH(C$5+$B10&ZobrazenéMeno,tblÚdaje[DÁTUM A ČAS]&tblÚdaje[KTO],0),3),\"\")","v":""},{"$f":"IFERROR(INDEX(tblÚdaje[],MATCH(D$5+$B10&ZobrazenéMeno,tblÚdaje[DÁTUM A ČAS]&tblÚdaje[KTO],0),3),\"\")","v":""},{"$f":"IFERROR(INDEX(tblÚdaje[],MATCH(E$5+$B10&ZobrazenéMeno,tblÚdaje[DÁTUM A ČAS]&tblÚdaje[KTO],0),3),\"\")","v":""},{"$f":"IFERROR(INDEX(tblÚdaje[],MATCH(F$5+$B10&ZobrazenéMeno,tblÚdaje[DÁTUM A ČAS]&tblÚdaje[KTO],0),3),\"\")","v":""},{"$f":"IFERROR(INDEX(tblÚdaje[],MATCH(G$5+$B10&ZobrazenéMeno,tblÚdaje[DÁTUM A ČAS]&tblÚdaje[KTO],0),3),\"\")","v":""},{"$f":"IFERROR(INDEX(tblÚdaje[],MATCH(H$5+$B10&ZobrazenéMeno,tblÚdaje[DÁTUM A ČAS]&tblÚdaje[KTO],0),3),\"\")","v":""},{"$f":"IFERROR(INDEX(tblÚdaje[],MATCH(I$5+$B10&ZobrazenéMeno,tblÚdaje[DÁTUM A ČAS]&tblÚdaje[KTO],0),3),\"\")","v":""}]
[null,"10:00:00",{"$f":"IFERROR(INDEX(tblÚdaje[],MATCH(C$5+$B11&ZobrazenéMeno,tblÚdaje[DÁTUM A ČAS]&tblÚdaje[KTO],0),3),\"\")","v":""},{"$f":"IFERROR(INDEX(tblÚdaje[],MATCH(D$5+$B11&ZobrazenéMeno,tblÚdaje[DÁTUM A ČAS]&tblÚdaje[KTO],0),3),\"\")","v":""},{"$f":"IFERROR(INDEX(tblÚdaje[],MATCH(E$5+$B11&ZobrazenéMeno,tblÚdaje[DÁTUM A ČAS]&tblÚdaje[KTO],0),3),\"\")","v":"Sprievod mestom"},{"$f":"IFERROR(INDEX(tblÚdaje[],MATCH(F$5+$B11&ZobrazenéMeno,tblÚdaje[DÁTUM A ČAS]&tblÚdaje[KTO],0),3),\"\")","v":""},{"$f":"IFERROR(INDEX(tblÚdaje[],MATCH(G$5+$B11&ZobrazenéMeno,tblÚdaje[DÁTUM A ČAS]&tblÚdaje[KTO],0),3),\"\")","v":""},{"$f":"IFERROR(INDEX(tblÚdaje[],MATCH(H$5+$B11&ZobrazenéMeno,tblÚdaje[DÁTUM A ČAS]&tblÚdaje[KTO],0),3),\"\")","v":""},{"$f":"IFERROR(INDEX(tblÚdaje[],MATCH(I$5+$B11&ZobrazenéMeno,tblÚdaje[DÁTUM A ČAS]&tblÚdaje[KTO],0),3),\"\")","v":""}]
[null,"11:00:00",{"$f":"IFERROR(INDEX(tblÚdaje[],MATCH(C$5+$B12&ZobrazenéMeno,tblÚdaje[DÁTUM A ČAS]&tblÚdaje[KTO],0),3),\"\")","v":""},{"$f":"IFERROR(INDEX(tblÚdaje[],MATCH(D$5+$B12&ZobrazenéMeno,tblÚdaje[DÁTUM A ČAS]&tblÚdaje[KTO],0),3),\"\")","v":""},{"$f":"IFERROR(INDEX(tblÚdaje[],MATCH(E$5+$B12&ZobrazenéMeno,tblÚdaje[DÁTUM A ČAS]&tblÚdaje[KTO],0),3),\"\")","v":""},{"$f":"IFERROR(INDEX(tblÚdaje[],MATCH(F$5+$B12&ZobrazenéMeno,tblÚdaje[DÁTUM A ČAS]&tblÚdaje[KTO],0),3),\"\")","v":""},{"$f":"IFERROR(INDEX(tblÚdaje[],MATCH(G$5+$B12&ZobrazenéMeno,tblÚdaje[DÁTUM A ČAS]&tblÚdaje[KTO],0),3),\"\")","v":"Rodinná grilovačka"},{"$f":"IFERROR(INDEX(tblÚdaje[],MATCH(H$5+$B12&ZobrazenéMeno,tblÚdaje[DÁTUM A ČAS]&tblÚdaje[KTO],0),3),\"\")","v":""},{"$f":"IFERROR(INDEX(tblÚdaje[],MATCH(I$5+$B12&ZobrazenéMeno,tblÚdaje[DÁTUM A ČAS]&tblÚdaje[KTO],0),3),\"\")","v":""}]
[null,"12:00:00",{"$f":"IFERROR(INDEX(tblÚdaje[],MATCH(C$5+$B13&ZobrazenéMeno,tblÚdaje[DÁTUM A ČAS]&tblÚdaje[KTO],0),3),\"\")","v":""},{"$f":"IFERROR(INDEX(tblÚdaje[],MATCH(D$5+$B13&ZobrazenéMeno,tblÚdaje[DÁTUM A ČAS]&tblÚdaje[KTO],0),3),\"\")","v":""},{"$f":"IFERROR(INDEX(tblÚdaje[],MATCH(E$5+$B13&ZobrazenéMeno,tblÚdaje[DÁTUM A ČAS]&tblÚdaje[KTO],0),3),\"\")","v":""},{"$f":"IFERROR(INDEX(tblÚdaje[],MATCH(F$5+$B13&ZobrazenéMeno,tblÚdaje[DÁTUM A ČAS]&tblÚdaje[KTO],0),3),\"\")","v":""},{"$f":"IFERROR(INDEX(tblÚdaje[],MATCH(G$5+$B13&ZobrazenéMeno,tblÚdaje[DÁTUM A ČAS]&tblÚdaje[KTO],0),3),\"\")","v":""},{"$f":"IFERROR(INDEX(tblÚdaje[],MATCH(H$5+$B13&ZobrazenéMeno,tblÚdaje[DÁTUM A ČAS]&tblÚdaje[KTO],0),3),\"\")","v":""},{"$f":"IFERROR(INDEX(tblÚdaje[],MATCH(I$5+$B13&ZobrazenéMeno,tblÚdaje[DÁTUM A ČAS]&tblÚdaje[KTO],0),3),\"\")","v":""}]
[null,"13:00:00",{"$f":"IFERROR(INDEX(tblÚdaje[],MATCH(C$5+$B14&ZobrazenéMeno,tblÚdaje[DÁTUM A ČAS]&tblÚdaje[KTO],0),3),\"\")","v":""},{"$f":"IFERROR(INDEX(tblÚdaje[],MATCH(D$5+$B14&ZobrazenéMeno,tblÚdaje[DÁTUM A ČAS]&tblÚdaje[KTO],0),3),\"\")","v":""},{"$f":"IFERROR(INDEX(tblÚdaje[],MATCH(E$5+$B14&ZobrazenéMeno,tblÚdaje[DÁTUM A ČAS]&tblÚdaje[KTO],0),3),\"\")","v":""},{"$f":"IFERROR(INDEX(tblÚdaje[],MATCH(F$5+$B14&ZobrazenéMeno,tblÚdaje[DÁTUM A ČAS]&tblÚdaje[KTO],0),3),\"\")","v":""},{"$f":"IFERROR(INDEX(tblÚdaje[],MATCH(G$5+$B14&ZobrazenéMeno,tblÚdaje[DÁTUM A ČAS]&tblÚdaje[KTO],0),3),\"\")","v":""},{"$f":"IFERROR(INDEX(tblÚdaje[],MATCH(H$5+$B14&ZobrazenéMeno,tblÚdaje[DÁTUM A ČAS]&tblÚdaje[KTO],0),3),\"\")","v":""},{"$f":"IFERROR(INDEX(tblÚdaje[],MATCH(I$5+$B14&ZobrazenéMeno,tblÚdaje[DÁTUM A ČAS]&tblÚdaje[KTO],0),3),\"\")","v":""}]
[null,"14:00:00",{"$f":"IFERROR(INDEX(tblÚdaje[],MATCH(C$5+$B15&ZobrazenéMeno,tblÚdaje[DÁTUM A ČAS]&tblÚdaje[KTO],0),3),\"\")","v":""},{"$f":"IFERROR(INDEX(tblÚdaje[],MATCH(D$5+$B15&ZobrazenéMeno,tblÚdaje[DÁTUM A ČAS]&tblÚdaje[KTO],0),3),\"\")","v":""},{"$f":"IFERROR(INDEX(tblÚdaje[],MATCH(E$5+$B15&ZobrazenéMeno,tblÚdaje[DÁTUM A ČAS]&tblÚdaje[KTO],0),3),\"\")","v":""},{"$f":"IFERROR(INDEX(tblÚdaje[],MATCH(F$5+$B15&ZobrazenéMeno,tblÚdaje[DÁTUM A ČAS]&tblÚdaje[KTO],0),3),\"\")","v":""},{"$f":"IFERROR(INDEX(tblÚdaje[],MATCH(G$5+$B15&ZobrazenéMeno,tblÚdaje[DÁTUM A ČAS]&tblÚdaje[KTO],0),3),\"\")","v":""},{"$f":"IFERROR(INDEX(tblÚdaje[],MATCH(H$5+$B15&ZobrazenéMeno,tblÚdaje[DÁTUM A ČAS]&tblÚdaje[KTO],0),3),\"\")","v":""},{"$f":"IFERROR(INDEX(tblÚdaje[],MATCH(I$5+$B15&ZobrazenéMeno,tblÚdaje[DÁTUM A ČAS]&tblÚdaje[KTO],0),3),\"\")","v":""}]
[null,"15:00:00",{"$f":"IFERROR(INDEX(tblÚdaje[],MATCH(C$5+$B16&ZobrazenéMeno,tblÚdaje[DÁTUM A ČAS]&tblÚdaje[KTO],0),3),\"\")","v":""},{"$f":"IFERROR(INDEX(tblÚdaje[],MATCH(D$5+$B16&ZobrazenéMeno,tblÚdaje[DÁTUM A ČAS]&tblÚdaje[KTO],0),3),\"\")","v":""},{"$f":"IFERROR(INDEX(tblÚdaje[],MATCH(E$5+$B16&ZobrazenéMeno,tblÚdaje[DÁTUM A ČAS]&tblÚdaje[KTO],0),3),\"\")","v":""},{"$f":"IFERROR(INDEX(tblÚdaje[],MATCH(F$5+$B16&ZobrazenéMeno,tblÚdaje[DÁTUM A ČAS]&tblÚdaje[KTO],0),3),\"\")","v":""},{"$f":"IFERROR(INDEX(tblÚdaje[],MATCH(G$5+$B16&ZobrazenéMeno,tblÚdaje[DÁTUM A ČAS]&tblÚdaje[KTO],0),3),\"\")","v":""},{"$f":"IFERROR(INDEX(tblÚdaje[],MATCH(H$5+$B16&ZobrazenéMeno,tblÚdaje[DÁTUM A ČAS]&tblÚdaje[KTO],0),3),\"\")","v":""},{"$f":"IFERROR(INDEX(tblÚdaje[],MATCH(I$5+$B16&ZobrazenéMeno,tblÚdaje[DÁTUM A ČAS]&tblÚdaje[KTO],0),3),\"\")","v":""}]
[null,"16:00:00",{"$f":"IFERROR(INDEX(tblÚdaje[],MATCH(C$5+$B17&ZobrazenéMeno,tblÚdaje[DÁTUM A ČAS]&tblÚdaje[KTO],0),3),\"\")","v":""},{"$f":"IFERROR(INDEX(tblÚdaje[],MATCH(D$5+$B17&ZobrazenéMeno,tblÚdaje[DÁTUM A ČAS]&tblÚdaje[KTO],0),3),\"\")","v":"Odchod na chatu"},{"$f":"IFERROR(INDEX(tblÚdaje[],MATCH(E$5+$B17&ZobrazenéMeno,tblÚdaje[DÁTUM A ČAS]&tblÚdaje[KTO],0),3),\"\")","v":""},{"$f":"IFERROR(INDEX(tblÚdaje[],MATCH(F$5+$B17&ZobrazenéMeno,tblÚdaje[DÁTUM A ČAS]&tblÚdaje[KTO],0),3),\"\")","v":""},{"$f":"IFERROR(INDEX(tblÚdaje[],MATCH(G$5+$B17&ZobrazenéMeno,tblÚdaje[DÁTUM A ČAS]&tblÚdaje[KTO],0),3),\"\")","v":""},{"$f":"IFERROR(INDEX(tblÚdaje[],MATCH(H$5+$B17&ZobrazenéMeno,tblÚdaje[DÁTUM A ČAS]&tblÚdaje[KTO],0),3),\"\")","v":""},{"$f":"IFERROR(INDEX(tblÚdaje[],MATCH(I$5+$B17&ZobrazenéMeno,tblÚdaje[DÁTUM A ČAS]&tblÚdaje[KTO],0),3),\"\")","v":""}]
[null,"17:00:00",{"$f":"IFERROR(INDEX(tblÚdaje[],MATCH(C$5+$B18&ZobrazenéMeno,tblÚdaje[DÁTUM A ČAS]&tblÚdaje[KTO],0),3),\"\")","v":""},{"$f":"IFERROR(INDEX(tblÚdaje[],MATCH(D$5+$B18&ZobrazenéMeno,tblÚdaje[DÁTUM A ČAS]&tblÚdaje[KTO],0),3),\"\")","v":""},{"$f":"IFERROR(INDEX(tblÚdaje[],MATCH(E$5+$B18&ZobrazenéMeno,tblÚdaje[DÁTUM A ČAS]&tblÚdaje[KTO],0),3),\"\")","v":""},{"$f":"IFERROR(INDEX(tblÚdaje[],MATCH(F$5+$B18&ZobrazenéMeno,tblÚdaje[DÁTUM A ČAS]&tblÚdaje[KTO],0),3),\"\")","v":""},{"$f":"IFERROR(INDEX(tblÚdaje[],MATCH(G$5+$B18&ZobrazenéMeno,tblÚdaje[DÁTUM A ČAS]&tblÚdaje[KTO],0),3),\"\")","v":""},{"$f":"IFERROR(INDEX(tblÚdaje[],MATCH(H$5+$B18&ZobrazenéMeno,tblÚdaje[DÁTUM A ČAS]&tblÚdaje[KTO],0),3),\"\")","v":""},{"$f":"IFERROR(INDEX(tblÚdaje[],MATCH(I$5+$B18&ZobrazenéMeno,tblÚdaje[DÁTUM A ČAS]&tblÚdaje[KTO],0),3),\"\")","v":"Návrat domov"}]
[null,"18:00:00",{"$f":"IFERROR(INDEX(tblÚdaje[],MATCH(C$5+$B19&ZobrazenéMeno,tblÚdaje[DÁTUM A ČAS]&tblÚdaje[KTO],0),3),\"\")","v":"Užiť lieky"},{"$f":"IFERROR(INDEX(tblÚdaje[],MATCH(D$5+$B19&ZobrazenéMeno,tblÚdaje[DÁTUM A ČAS]&tblÚdaje[KTO],0),3),\"\")","v":""},{"$f":"IFERROR(INDEX(tblÚdaje[],MATCH(E$5+$B19&ZobrazenéMeno,tblÚdaje[DÁTUM A ČAS]&tblÚdaje[KTO],0),3),\"\")","v":""},{"$f":"IFERROR(INDEX(tblÚdaje[],MATCH(F$5+$B19&ZobrazenéMeno,tblÚdaje[DÁTUM A ČAS]&tblÚdaje[KTO],0),3),\"\")","v":""},{"$f":"IFERROR(INDEX(tblÚdaje[],MATCH(G$5+$B19&ZobrazenéMeno,tblÚdaje[DÁTUM A ČAS]&tblÚdaje[KTO],0),3),\"\")","v":""},{"$f":"IFERROR(INDEX(tblÚdaje[],MATCH(H$5+$B19&ZobrazenéMeno,tblÚdaje[DÁTUM A ČAS]&tblÚdaje[KTO],0),3),\"\")","v":""},{"$f":"IFERROR(INDEX(tblÚdaje[],MATCH(I$5+$B19&ZobrazenéMeno,tblÚdaje[DÁTUM A ČAS]&tblÚdaje[KTO],0),3),\"\")","v":""}]
[null,"19:00:00",{"$f":"IFERROR(INDEX(tblÚdaje[],MATCH(C$5+$B20&ZobrazenéMeno,tblÚdaje[DÁTUM A ČAS]&tblÚdaje[KTO],0),3),\"\")","v":""},{"$f":"IFERROR(INDEX(tblÚdaje[],MATCH(D$5+$B20&ZobrazenéMeno,tblÚdaje[DÁTUM A ČAS]&tblÚdaje[KTO],0),3),\"\")","v":""},{"$f":"IFERROR(INDEX(tblÚdaje[],MATCH(E$5+$B20&ZobrazenéMeno,tblÚdaje[DÁTUM A ČAS]&tblÚdaje[KTO],0),3),\"\")","v":""},{"$f":"IFERROR(INDEX(tblÚdaje[],MATCH(F$5+$B20&ZobrazenéMeno,tblÚdaje[DÁTUM A ČAS]&tblÚdaje[KTO],0),3),\"\")","v":""},{"$f":"IFERROR(INDEX(tblÚdaje[],MATCH(G$5+$B20&ZobrazenéMeno,tblÚdaje[DÁTUM A ČAS]&tblÚdaje[KTO],0),3),\"\")","v":""},{"$f":"IFERROR(INDEX(tblÚdaje[],MATCH(H$5+$B20&ZobrazenéMeno,tblÚdaje[DÁTUM A ČAS]&tblÚdaje[KTO],0),3),\"\")","v":""},{"$f":"IFERROR(INDEX(tblÚdaje[],MATCH(I$5+$B20&ZobrazenéMeno,tblÚdaje[DÁTUM A ČAS]&tblÚdaje[KTO],0),3),\"\")","v":""}]
[null,"20:00:00",{"$f":"IFERROR(INDEX(tblÚdaje[],MATCH(C$5+$B21&ZobrazenéMeno,tblÚdaje[DÁTUM A ČAS]&tblÚdaje[KTO],0),3),\"\")","v":"Film s rodinou"},{"$f":"IFERROR(INDEX(tblÚdaje[],MATCH(D$5+$B21&ZobrazenéMeno,tblÚdaje[DÁTUM A ČAS]&tblÚdaje[KTO],0),3),\"\")","v":""},{"$f":"IFERROR(INDEX(tblÚdaje[],MATCH(E$5+$B21&ZobrazenéMeno,tblÚdaje[DÁTUM A ČAS]&tblÚdaje[KTO],0),3),\"\")","v":""},{"$f":"IFERROR(INDEX(tblÚdaje[],MATCH(F$5+$B21&ZobrazenéMeno,tblÚdaje[DÁTUM A ČAS]&tblÚdaje[KTO],0),3),\"\")","v":"Ohňostroj"},{"$f":"IFERROR(INDEX(tblÚdaje[],MATCH(G$5+$B21&ZobrazenéMeno,tblÚdaje[DÁTUM A ČAS]&tblÚdaje[KTO],0),3),\"\")","v":""},{"$f":"IFERROR(INDEX(tblÚdaje[],MATCH(H$5+$B21&ZobrazenéMeno,tblÚdaje[DÁTUM A ČAS]&tblÚdaje[KTO],0),3),\"\")","v":""},{"$f":"IFERROR(INDEX(tblÚdaje[],MATCH(I$5+$B21&ZobrazenéMeno,tblÚdaje[DÁTUM A ČAS]&tblÚdaje[KTO],0),3),\"\")","v":""}]
[null,"21:00:00",{"$f":"IFERROR(INDEX(tblÚdaje[],MATCH(C$5+$B22&ZobrazenéMeno,tblÚdaje[DÁTUM A ČAS]&tblÚdaje[KTO],0),3),\"\")","v":""},{"$f":"IFERROR(INDEX(tblÚdaje[],MATCH(D$5+$B22&ZobrazenéMeno,tblÚdaje[DÁTUM A ČAS]&tblÚdaje[KTO],0),3),\"\")","v":""},{"$f":"IFERROR(INDEX(tblÚdaje[],MATCH(E$5+$B22&ZobrazenéMeno,tblÚdaje[DÁTUM A ČAS]&tblÚdaje[KTO],0),3),\"\")","v":""},{"$f":"IFERROR(INDEX(tblÚdaje[],MATCH(F$5+$B22&ZobrazenéMeno,tblÚdaje[DÁTUM A ČAS]&tblÚdaje[KTO],0),3),\"\")","v":""},{"$f":"IFERROR(INDEX(tblÚdaje[],MATCH(G$5+$B22&ZobrazenéMeno,tblÚdaje[DÁTUM A ČAS]&tblÚdaje[KTO],0),3),\"\")","v":""},{"$f":"IFERROR(INDEX(tblÚdaje[],MATCH(H$5+$B22&ZobrazenéMeno,tblÚdaje[DÁTUM A ČAS]&tblÚdaje[KTO],0),3),\"\")","v":""},{"$f":"IFERROR(INDEX(tblÚdaje[],MATCH(I$5+$B22&ZobrazenéMeno,tblÚdaje[DÁTUM A ČAS]&tblÚdaje[KTO],0),3),\"\")","v":""}]
[null,"22:00:00",{"$f":"IFERROR(INDEX(tblÚdaje[],MATCH(C$5+$B23&ZobrazenéMeno,tblÚdaje[DÁTUM A ČAS]&tblÚdaje[KTO],0),3),\"\")","v":""},{"$f":"IFERROR(INDEX(tblÚdaje[],MATCH(D$5+$B23&ZobrazenéMeno,tblÚdaje[DÁTUM A ČAS]&tblÚdaje[KTO],0),3),\"\")","v":""},{"$f":"IFERROR(INDEX(tblÚdaje[],MATCH(E$5+$B23&ZobrazenéMeno,tblÚdaje[DÁTUM A ČAS]&tblÚdaje[KTO],0),3),\"\")","v":""},{"$f":"IFERROR(INDEX(tblÚdaje[],MATCH(F$5+$B23&ZobrazenéMeno,tblÚdaje[DÁTUM A ČAS]&tblÚdaje[KTO],0),3),\"\")","v":""},{"$f":"IFERROR(INDEX(tblÚdaje[],MATCH(G$5+$B23&ZobrazenéMeno,tblÚdaje[DÁTUM A ČAS]&tblÚdaje[KTO],0),3),\"\")","v":""},{"$f":"IFERROR(INDEX(tblÚdaje[],MATCH(H$5+$B23&ZobrazenéMeno,tblÚdaje[DÁTUM A ČAS]&tblÚdaje[KTO],0),3),\"\")","v":""},{"$f":"IFERROR(INDEX(tblÚdaje[],MATCH(I$5+$B23&ZobrazenéMeno,tblÚdaje[DÁTUM A ČAS]&tblÚdaje[KTO],0),3),\"\")","v":""}]

{"sheet":"Zadávanie údajov","index":1,"n_rows":14,"n_cols":4,"rows_kept":14}
[null,"ZADÁVANIE ÚDAJOV"]
[]
[null,"DÁTUM A ČAS","KTO","ÚLOHA"]
[null,"2012-07-02T08:00:00","Lucia","Lekárske vyšetrenie"]
[null,"2012-07-02T18:00:00","Peter","Užiť lieky"]
[null,"2012-07-02T18:30:00","Peter","Večera s Luciou"]
[null,"2012-07-02T20:00:00","Peter","Film s rodinou"]
[null,"2012-07-03T16:00:00","Peter","Odchod na chatu"]
[null,"2012-07-04T10:00:00","Peter","Sprievod mestom"]
[null,"2012-07-05T20:00:00","Peter","Ohňostroj"]
[null,"2012-07-06T11:00:00","Peter","Rodinná grilovačka"]
[null,"2012-07-07","Peter","Susedský piknik"]
[null,"2012-07-08T17:00:00","Peter","Návrat domov"]
[null,"2012-07-02T10:00:00","Lucia","Hodina klavíra"]

{"sheet":"Vyhľadanie mena","index":2,"n_rows":132,"n_cols":2,"rows_kept":132,"hidden":true,"merged":[[0,0,0,1]]}
["Tento hárok naplní rozbaľovací zoznam s menami v bunke H3 hárka Plán. Akékoľvek zmeny v tomto hárku môžu viesť k chybe."]
["JEDINEČNÉ MENO","ČÍSLO RIADKA"]
[{"$f":"IFERROR(INDEX(PoleKto,MATCH(0,COUNTIF($A$2:A2,PoleKto),0)),\"\")","v":"Lucia"},{"$f":"IF(A3=\"\",\"\",ROW())","v":3}]
[{"$f":"IFERROR(INDEX(PoleKto,MATCH(0,COUNTIF($A$2:A3,PoleKto),0)),\"\")","v":"Peter"},{"$f":"IF(A4=\"\",\"\",ROW())","v":4}]
[{"$f":"IFERROR(INDEX(PoleKto,MATCH(0,COUNTIF($A$2:A4,PoleKto),0)),\"\")","v":""},""]
[{"$f":"IFERROR(INDEX(PoleKto,MATCH(0,COUNTIF($A$2:A5,PoleKto),0)),\"\")","v":""},""]
[{"$f":"IFERROR(INDEX(PoleKto,MATCH(0,COUNTIF($A$2:A6,PoleKto),0)),\"\")","v":""},""]
[{"$f":"IFERROR(INDEX(PoleKto,MATCH(0,COUNTIF($A$2:A7,PoleKto),0)),\"\")","v":""},""]
[{"$f":"IFERROR(INDEX(PoleKto,MATCH(0,COUNTIF($A$2:A8,PoleKto),0)),\"\")","v":""},""]
[{"$f":"IFERROR(INDEX(PoleKto,MATCH(0,COUNTIF($A$2:A9,PoleKto),0)),\"\")","v":""},""]
[{"$f":"IFERROR(INDEX(PoleKto,MATCH(0,COUNTIF($A$2:A10,PoleKto),0)),\"\")","v":""},""]
[{"$f":"IFERROR(INDEX(PoleKto,MATCH(0,COUNTIF($A$2:A11,PoleKto),0)),\"\")","v":""},""]
[{"$f":"IFERROR(INDEX(PoleKto,MATCH(0,COUNTIF($A$2:A12,PoleKto),0)),\"\")","v":""},""]
[{"$f":"IFERROR(INDEX(PoleKto,MATCH(0,COUNTIF($A$2:A13,PoleKto),0)),\"\")","v":""},""]
[{"$f":"IFERROR(INDEX(PoleKto,MATCH(0,COUNTIF($A$2:A14,PoleKto),0)),\"\")","v":""},""]
[{"$f":"IFERROR(INDEX(PoleKto,MATCH(0,COUNTIF($A$2:A15,PoleKto),0)),\"\")","v":""},""]
[{"$f":"IFERROR(INDEX(PoleKto,MATCH(0,COUNTIF($A$2:A16,PoleKto),0)),\"\")","v":""},""]
[{"$f":"IFERROR(INDEX(PoleKto,MATCH(0,COUNTIF($A$2:A17,PoleKto),0)),\"\")","v":""},""]
[{"$f":"IFERROR(INDEX(PoleKto,MATCH(0,COUNTIF($A$2:A18,PoleKto),0)),\"\")","v":""},""]
[{"$f":"IFERROR(INDEX(PoleKto,MATCH(0,COUNTIF($A$2:A19,PoleKto),0)),\"\")","v":""},""]
[{"$f":"IFERROR(INDEX(PoleKto,MATCH(0,COUNTIF($A$2:A20,PoleKto),0)),\"\")","v":""},""]
[{"$f":"IFERROR(INDEX(PoleKto,MATCH(0,COUNTIF($A$2:A21,PoleKto),0)),\"\")","v":""},""]
[{"$f":"IFERROR(INDEX(PoleKto,MATCH(0,COUNTIF($A$2:A22,PoleKto),0)),\"\")","v":""},""]
[{"$f":"IFERROR(INDEX(PoleKto,MATCH(0,COUNTIF($A$2:A23,PoleKto),0)),\"\")","v":""},""]
[{"$f":"IFERROR(INDEX(PoleKto,MATCH(0,COUNTIF($A$2:A24,PoleKto),0)),\"\")","v":""},""]
[{"$f":"IFERROR(INDEX(PoleKto,MATCH(0,COUNTIF($A$2:A25,PoleKto),0)),\"\")","v":""},""]
[{"$f":"IFERROR(INDEX(PoleKto,MATCH(0,COUNTIF($A$2:A26,PoleKto),0)),\"\")","v":""},""]
[{"$f":"IFERROR(INDEX(PoleKto,MATCH(0,COUNTIF($A$2:A27,PoleKto),0)),\"\")","v":""},""]
[{"$f":"IFERROR(INDEX(PoleKto,MATCH(0,COUNTIF($A$2:A28,PoleKto),0)),\"\")","v":""},""]
[{"$f":"IFERROR(INDEX(PoleKto,MATCH(0,COUNTIF($A$2:A29,PoleKto),0)),\"\")","v":""},""]
[{"$f":"IFERROR(INDEX(PoleKto,MATCH(0,COUNTIF($A$2:A30,PoleKto),0)),\"\")","v":""},""]
[{"$f":"IFERROR(INDEX(PoleKto,MATCH(0,COUNTIF($A$2:A31,PoleKto),0)),\"\")","v":""},""]
[{"$f":"IFERROR(INDEX(PoleKto,MATCH(0,COUNTIF($A$2:A32,PoleKto),0)),\"\")","v":""},""]
[{"$f":"IFERROR(INDEX(PoleKto,MATCH(0,COUNTIF($A$2:A33,PoleKto),0)),\"\")","v":""},""]
[{"$f":"IFERROR(INDEX(PoleKto,MATCH(0,COUNTIF($A$2:A34,PoleKto),0)),\"\")","v":""},""]
[{"$f":"IFERROR(INDEX(PoleKto,MATCH(0,COUNTIF($A$2:A35,PoleKto),0)),\"\")","v":""},""]
[{"$f":"IFERROR(INDEX(PoleKto,MATCH(0,COUNTIF($A$2:A36,PoleKto),0)),\"\")","v":""},""]
[{"$f":"IFERROR(INDEX(PoleKto,MATCH(0,COUNTIF($A$2:A37,PoleKto),0)),\"\")","v":""},""]
[{"$f":"IFERROR(INDEX(PoleKto,MATCH(0,COUNTIF($A$2:A38,PoleKto),0)),\"\")","v":""},""]
[{"$f":"IFERROR(INDEX(PoleKto,MATCH(0,COUNTIF($A$2:A39,PoleKto),0)),\"\")","v":""},""]
[{"$f":"IFERROR(INDEX(PoleKto,MATCH(0,COUNTIF($A$2:A40,PoleKto),0)),\"\")","v":""},""]
[{"$f":"IFERROR(INDEX(PoleKto,MATCH(0,COUNTIF($A$2:A41,PoleKto),0)),\"\")","v":""},""]
[{"$f":"IFERROR(INDEX(PoleKto,MATCH(0,COUNTIF($A$2:A42,PoleKto),0)),\"\")","v":""},""]
[{"$f":"IFERROR(INDEX(PoleKto,MATCH(0,COUNTIF($A$2:A43,PoleKto),0)),\"\")","v":""},""]
[{"$f":"IFERROR(INDEX(PoleKto,MATCH(0,COUNTIF($A$2:A44,PoleKto),0)),\"\")","v":""},""]
[{"$f":"IFERROR(INDEX(PoleKto,MATCH(0,COUNTIF($A$2:A45,PoleKto),0)),\"\")","v":""},""]
[{"$f":"IFERROR(INDEX(PoleKto,MATCH(0,COUNTIF($A$2:A46,PoleKto),0)),\"\")","v":""},""]
[{"$f":"IFERROR(INDEX(PoleKto,MATCH(0,COUNTIF($A$2:A47,PoleKto),0)),\"\")","v":""},""]
[{"$f":"IFERROR(INDEX(PoleKto,MATCH(0,COUNTIF($A$2:A48,PoleKto),0)),\"\")","v":""},""]
[{"$f":"IFERROR(INDEX(PoleKto,MATCH(0,COUNTIF($A$2:A49,PoleKto),0)),\"\")","v":""},""]
[{"$f":"IFERROR(INDEX(PoleKto,MATCH(0,COUNTIF($A$2:A50,PoleKto),0)),\"\")","v":""},""]
[{"$f":"IFERROR(INDEX(PoleKto,MATCH(0,COUNTIF($A$2:A51,PoleKto),0)),\"\")","v":""},""]
[{"$f":"IFERROR(INDEX(PoleKto,MATCH(0,COUNTIF($A$2:A52,PoleKto),0)),\"\")","v":""},""]
[{"$f":"IFERROR(INDEX(PoleKto,MATCH(0,COUNTIF($A$2:A53,PoleKto),0)),\"\")","v":""},""]
[{"$f":"IFERROR(INDEX(PoleKto,MATCH(0,COUNTIF($A$2:A54,PoleKto),0)),\"\")","v":""},""]
[{"$f":"IFERROR(INDEX(PoleKto,MATCH(0,COUNTIF($A$2:A55,PoleKto),0)),\"\")","v":""},""]
[{"$f":"IFERROR(INDEX(PoleKto,MATCH(0,COUNTIF($A$2:A56,PoleKto),0)),\"\")","v":""},""]
[{"$f":"IFERROR(INDEX(PoleKto,MATCH(0,COUNTIF($A$2:A57,PoleKto),0)),\"\")","v":""},""]
[{"$f":"IFERROR(INDEX(PoleKto,MATCH(0,COUNTIF($A$2:A58,PoleKto),0)),\"\")","v":""},""]
[{"$f":"IFERROR(INDEX(PoleKto,MATCH(0,COUNTIF($A$2:A59,PoleKto),0)),\"\")","v":""},""]
[{"$f":"IFERROR(INDEX(PoleKto,MATCH(0,COUNTIF($A$2:A60,PoleKto),0)),\"\")","v":""},""]
[{"$f":"IFERROR(INDEX(PoleKto,MATCH(0,COUNTIF($A$2:A61,PoleKto),0)),\"\")","v":""},""]
[{"$f":"IFERROR(INDEX(PoleKto,MATCH(0,COUNTIF($A$2:A62,PoleKto),0)),\"\")","v":""},""]
[{"$f":"IFERROR(INDEX(PoleKto,MATCH(0,COUNTIF($A$2:A63,PoleKto),0)),\"\")","v":""},""]
[{"$f":"IFERROR(INDEX(PoleKto,MATCH(0,COUNTIF($A$2:A64,PoleKto),0)),\"\")","v":""},""]
[{"$f":"IFERROR(INDEX(PoleKto,MATCH(0,COUNTIF($A$2:A65,PoleKto),0)),\"\")","v":""},""]
[{"$f":"IFERROR(INDEX(PoleKto,MATCH(0,COUNTIF($A$2:A66,PoleKto),0)),\"\")","v":""},""]
[{"$f":"IFERROR(INDEX(PoleKto,MATCH(0,COUNTIF($A$2:A67,PoleKto),0)),\"\")","v":""},{"$f":"IF(A68=\"\",\"\",ROW())","v":""}]
[{"$f":"IFERROR(INDEX(PoleKto,MATCH(0,COUNTIF($A$2:A68,PoleKto),0)),\"\")","v":""},""]
[{"$f":"IFERROR(INDEX(PoleKto,MATCH(0,COUNTIF($A$2:A69,PoleKto),0)),\"\")","v":""},""]
[{"$f":"IFERROR(INDEX(PoleKto,MATCH(0,COUNTIF($A$2:A70,PoleKto),0)),\"\")","v":""},""]
[{"$f":"IFERROR(INDEX(PoleKto,MATCH(0,COUNTIF($A$2:A71,PoleKto),0)),\"\")","v":""},""]
[{"$f":"IFERROR(INDEX(PoleKto,MATCH(0,COUNTIF($A$2:A72,PoleKto),0)),\"\")","v":""},""]
[{"$f":"IFERROR(INDEX(PoleKto,MATCH(0,COUNTIF($A$2:A73,PoleKto),0)),\"\")","v":""},""]
[{"$f":"IFERROR(INDEX(PoleKto,MATCH(0,COUNTIF($A$2:A74,PoleKto),0)),\"\")","v":""},""]
[{"$f":"IFERROR(INDEX(PoleKto,MATCH(0,COUNTIF($A$2:A75,PoleKto),0)),\"\")","v":""},""]
[{"$f":"IFERROR(INDEX(PoleKto,MATCH(0,COUNTIF($A$2:A76,PoleKto),0)),\"\")","v":""},""]
[{"$f":"IFERROR(INDEX(PoleKto,MATCH(0,COUNTIF($A$2:A77,PoleKto),0)),\"\")","v":""},""]
[{"$f":"IFERROR(INDEX(PoleKto,MATCH(0,COUNTIF($A$2:A78,PoleKto),0)),\"\")","v":""},""]
[{"$f":"IFERROR(INDEX(PoleKto,MATCH(0,COUNTIF($A$2:A79,PoleKto),0)),\"\")","v":""},""]
[{"$f":"IFERROR(INDEX(PoleKto,MATCH(0,COUNTIF($A$2:A80,PoleKto),0)),\"\")","v":""},""]
[{"$f":"IFERROR(INDEX(PoleKto,MATCH(0,COUNTIF($A$2:A81,PoleKto),0)),\"\")","v":""},""]
[{"$f":"IFERROR(INDEX(PoleKto,MATCH(0,COUNTIF($A$2:A82,PoleKto),0)),\"\")","v":""},""]
[{"$f":"IFERROR(INDEX(PoleKto,MATCH(0,COUNTIF($A$2:A83,PoleKto),0)),\"\")","v":""},""]
[{"$f":"IFERROR(INDEX(PoleKto,MATCH(0,COUNTIF($A$2:A84,PoleKto),0)),\"\")","v":""},""]
[{"$f":"IFERROR(INDEX(PoleKto,MATCH(0,COUNTIF($A$2:A85,PoleKto),0)),\"\")","v":""},""]
[{"$f":"IFERROR(INDEX(PoleKto,MATCH(0,COUNTIF($A$2:A86,PoleKto),0)),\"\")","v":""},""]
[{"$f":"IFERROR(INDEX(PoleKto,MATCH(0,COUNTIF($A$2:A87,PoleKto),0)),\"\")","v":""},""]
[{"$f":"IFERROR(INDEX(PoleKto,MATCH(0,COUNTIF($A$2:A88,PoleKto),0)),\"\")","v":""},""]
[{"$f":"IFERROR(INDEX(PoleKto,MATCH(0,COUNTIF($A$2:A89,PoleKto),0)),\"\")","v":""},""]
[{"$f":"IFERROR(INDEX(PoleKto,MATCH(0,COUNTIF($A$2:A90,PoleKto),0)),\"\")","v":""},""]
[{"$f":"IFERROR(INDEX(PoleKto,MATCH(0,COUNTIF($A$2:A91,PoleKto),0)),\"\")","v":""},""]
[{"$f":"IFERROR(INDEX(PoleKto,MATCH(0,COUNTIF($A$2:A92,PoleKto),0)),\"\")","v":""},""]
[{"$f":"IFERROR(INDEX(PoleKto,MATCH(0,COUNTIF($A$2:A93,PoleKto),0)),\"\")","v":""},""]
[{"$f":"IFERROR(INDEX(PoleKto,MATCH(0,COUNTIF($A$2:A94,PoleKto),0)),\"\")","v":""},""]
[{"$f":"IFERROR(INDEX(PoleKto,MATCH(0,COUNTIF($A$2:A95,PoleKto),0)),\"\")","v":""},""]
[{"$f":"IFERROR(INDEX(PoleKto,MATCH(0,COUNTIF($A$2:A96,PoleKto),0)),\"\")","v":""},""]
[{"$f":"IFERROR(INDEX(PoleKto,MATCH(0,COUNTIF($A$2:A97,PoleKto),0)),\"\")","v":""},""]
[{"$f":"IFERROR(INDEX(PoleKto,MATCH(0,COUNTIF($A$2:A98,PoleKto),0)),\"\")","v":""},""]
[{"$f":"IFERROR(INDEX(PoleKto,MATCH(0,COUNTIF($A$2:A99,PoleKto),0)),\"\")","v":""},""]
[{"$f":"IFERROR(INDEX(PoleKto,MATCH(0,COUNTIF($A$2:A100,PoleKto),0)),\"\")","v":""},""]
[{"$f":"IFERROR(INDEX(PoleKto,MATCH(0,COUNTIF($A$2:A101,PoleKto),0)),\"\")","v":""},""]
[{"$f":"IFERROR(INDEX(PoleKto,MATCH(0,COUNTIF($A$2:A102,PoleKto),0)),\"\")","v":""},""]
[{"$f":"IFERROR(INDEX(PoleKto,MATCH(0,COUNTIF($A$2:A103,PoleKto),0)),\"\")","v":""},""]
[{"$f":"IFERROR(INDEX(PoleKto,MATCH(0,COUNTIF($A$2:A104,PoleKto),0)),\"\")","v":""},""]
[{"$f":"IFERROR(INDEX(PoleKto,MATCH(0,COUNTIF($A$2:A105,PoleKto),0)),\"\")","v":""},""]
[{"$f":"IFERROR(INDEX(PoleKto,MATCH(0,COUNTIF($A$2:A106,PoleKto),0)),\"\")","v":""},""]
[{"$f":"IFERROR(INDEX(PoleKto,MATCH(0,COUNTIF($A$2:A107,PoleKto),0)),\"\")","v":""},""]
[{"$f":"IFERROR(INDEX(PoleKto,MATCH(0,COUNTIF($A$2:A108,PoleKto),0)),\"\")","v":""},""]
[{"$f":"IFERROR(INDEX(PoleKto,MATCH(0,COUNTIF($A$2:A109,PoleKto),0)),\"\")","v":""},""]
[{"$f":"IFERROR(INDEX(PoleKto,MATCH(0,COUNTIF($A$2:A110,PoleKto),0)),\"\")","v":""},""]
[{"$f":"IFERROR(INDEX(PoleKto,MATCH(0,COUNTIF($A$2:A111,PoleKto),0)),\"\")","v":""},""]
[{"$f":"IFERROR(INDEX(PoleKto,MATCH(0,COUNTIF($A$2:A112,PoleKto),0)),\"\")","v":""},""]
[{"$f":"IFERROR(INDEX(PoleKto,MATCH(0,COUNTIF($A$2:A113,PoleKto),0)),\"\")","v":""},""]
[{"$f":"IFERROR(INDEX(PoleKto,MATCH(0,COUNTIF($A$2:A114,PoleKto),0)),\"\")","v":""},""]
[{"$f":"IFERROR(INDEX(PoleKto,MATCH(0,COUNTIF($A$2:A115,PoleKto),0)),\"\")","v":""},""]
[{"$f":"IFERROR(INDEX(PoleKto,MATCH(0,COUNTIF($A$2:A116,PoleKto),0)),\"\")","v":""},""]
[{"$f":"IFERROR(INDEX(PoleKto,MATCH(0,COUNTIF($A$2:A117,PoleKto),0)),\"\")","v":""},""]
[{"$f":"IFERROR(INDEX(PoleKto,MATCH(0,COUNTIF($A$2:A118,PoleKto),0)),\"\")","v":""},""]
[{"$f":"IFERROR(INDEX(PoleKto,MATCH(0,COUNTIF($A$2:A119,PoleKto),0)),\"\")","v":""},""]
[{"$f":"IFERROR(INDEX(PoleKto,MATCH(0,COUNTIF($A$2:A120,PoleKto),0)),\"\")","v":""},""]
[{"$f":"IFERROR(INDEX(PoleKto,MATCH(0,COUNTIF($A$2:A121,PoleKto),0)),\"\")","v":""},""]
[{"$f":"IFERROR(INDEX(PoleKto,MATCH(0,COUNTIF($A$2:A122,PoleKto),0)),\"\")","v":""},""]
[{"$f":"IFERROR(INDEX(PoleKto,MATCH(0,COUNTIF($A$2:A123,PoleKto),0)),\"\")","v":""},""]
[{"$f":"IFERROR(INDEX(PoleKto,MATCH(0,COUNTIF($A$2:A124,PoleKto),0)),\"\")","v":""},""]
[{"$f":"IFERROR(INDEX(PoleKto,MATCH(0,COUNTIF($A$2:A125,PoleKto),0)),\"\")","v":""},""]
[{"$f":"IFERROR(INDEX(PoleKto,MATCH(0,COUNTIF($A$2:A126,PoleKto),0)),\"\")","v":""},""]
[{"$f":"IFERROR(INDEX(PoleKto,MATCH(0,COUNTIF($A$2:A127,PoleKto),0)),\"\")","v":""},""]
[{"$f":"IFERROR(INDEX(PoleKto,MATCH(0,COUNTIF($A$2:A128,PoleKto),0)),\"\")","v":""},""]
[{"$f":"IFERROR(INDEX(PoleKto,MATCH(0,COUNTIF($A$2:A129,PoleKto),0)),\"\")","v":""},""]
[{"$f":"IFERROR(INDEX(PoleKto,MATCH(0,COUNTIF($A$2:A130,PoleKto),0)),\"\")","v":""},""]
[{"$f":"IFERROR(INDEX(PoleKto,MATCH(0,COUNTIF($A$2:A131,PoleKto),0)),\"\")","v":""},{"$f":"IF(A132=\"\",\"\",ROW())","v":""}]